bitfinex/quotes_SOLUSD_20241202
["timestamp","ask_amount","ask_price","bid_price","bid_amount"]
[1733176823747,3.58417564,222.52,222.48,23.776884]
[1733176824048,3.58417564,222.52,222.47,23.776884]
[1733176824246,3.58417564,222.52,222.45,8.5386829]
[1733176824247,8.5386829,222.48,222.45,23.776884]
[1733176824411,8.5386829,222.47,222.45,23.776884]
[1733176824816,8.5386829,222.47,222.44,23.776884]
[1733176825017,8.5386829,222.47,222.43,4.487]
[1733176825328,8.5386829,222.45,222.38,85.6695]
[1733176825531,8.5386829,222.43,222.38,85.6695]
[1733176825852,8.5386829,222.44,222.39,4.487]
[1733176826341,8.5386829,222.44,222.38,85.6695]
[1733176826727,8.5386829,222.44,222.39,4.487]
[1733176827040,8.5386829,222.45,222.38,15.6695]
[1733176827248,6.83174075,222.51,222.39,23.776884]
[1733176827249,8.5386829,222.44,222.39,23.776884]
[1733176827830,8.5386829,222.44,222.41,23.776884]
[1733176828242,42.6934145,222.42,222.4,498.81641994]
[1733176828540,8.5386829,222.41,222.4,498.81641994]
[1733176828753,9.66003127,222.41,222.4,498.81641994]
[1733176830427,12.62187895,222.41,222.4,498.81641994]
[1733176830627,20.15883489,222.41,222.4,498.81641994]
[1733176831543,24.98268625,222.41,222.4,498.81641994]
[1733176833451,33.57500739,222.41,222.4,422.32586327]
[1733176834345,33.57500739,222.41,222.4,417.54886327]
[1733176834657,33.57500739,222.41,222.4,405.05946327]
[1733176834824,33.57500739,222.41,222.4,399.61546327]
[1733176835224,33.57500739,222.41,222.4,393.72786327]
[1733176835426,33.57500739,222.41,222.4,387.22186327]
[1733176836156,33.57500739,222.41,222.4,310.7313066]
[1733176837450,33.57500739,222.41,222.4,306.8255066]
[1733176839171,44.81550739,222.41,222.4,239.20472592]
[1733176839328,44.81550739,222.41,222.4,171.58394524]
[1733176839851,35.02776691,222.41,222.4,171.58394524]
[1733176840158,39.81550739,222.41,222.4,171.58394524]
[1733176841260,44.81550739,222.41,222.4,165.65674524]
[1733176841765,44.81550739,222.41,222.4,98.03596456]
[1733176842054,44.81550739,222.41,222.4,1.383e-05]
[1733176842263,38.54684307,222.41,222.4,1.383e-05]
[1733176842458,43.33458355,222.41,222.4,1.383e-05]
[1733176843564,38.33458355,222.41,222.4,1.383e-05]
[1733176844339,20.0,222.38,222.3,23.776884]
[1733176844651,20.0,222.33,222.3,37.13941826]
[1733176844862,20.0,222.33,222.29,23.776884]
[1733176845250,18.71443483,222.38,222.32,23.776884]
[1733176845440,5.35190057,222.38,222.32,37.13941826]
[1733176845648,5.35190057,222.38,222.34,23.776884]
[1733176846162,18.71443483,222.38,222.32,23.776884]
[1733176847646,13.36253426,222.37,222.31,23.776884]
[1733176847862,1.12176613,222.36,222.31,23.776884]
[1733176849750,1.12176613,222.36,222.33,23.776884]
[1733176849951,20.0,222.36,222.33,37.13941826]
[1733176850148,20.0,222.36,222.33,23.776884]
[1733176850771,1.12168576,222.37,222.33,23.776884]
[1733176850971,20.0,222.36,222.33,23.776884]
[1733176851667,20.0,222.36,222.32,28.263884]
[1733176852848,20.0,222.36,222.32,36.81323342]
[1733176853173,5.9093355,222.39,222.35,32.32623342]
[1733176853381,10.0,222.42,222.38,8.54934942]
[1733176853695,10.0,222.42,222.34,16.1388]
[1733176853696,10.0,222.42,222.41,32.32623342]
[1733176854142,10.0,222.42,222.41,23.776884]
[1733176854657,11.12137697,222.42,222.35,8.54934942]
[1733176855261,11.12137697,222.42,222.36,8.54934942]
[1733176855653,11.12137697,222.42,222.37,23.776884]
[1733176855863,11.12137697,222.42,222.37,13.35268515]
[1733176856046,10.0,222.42,222.38,23.776884]
[1733176856674,10.0,222.42,222.41,13.35268515]
[1733176856869,10.0,222.42,222.41,37.12956915]
[1733176858967,10.0,222.42,222.41,41.61656915]
[1733176860479,10.0,222.42,222.41,23.776884]
[1733176860778,10.0,222.42,222.41,13.35268515]
[1733176860983,10.0,222.42,222.41,37.12956915]
[1733176861568,10.0,222.42,222.41,41.61656915]
[1733176863390,10.0,222.42,222.4,4.487]
[1733176864083,10.0,222.42,222.37,17.83968515]
[1733176864855,10.0,222.42,222.38,13.35268515]
[1733176865267,10.0,222.42,222.39,23.776884]
[1733176865859,10.0,222.42,222.41,23.776884]
[1733176866260,10.0,222.42,222.41,37.12956915]
[1733176866587,10.0,222.42,222.41,41.61656915]
[1733176868849,13.35268515,222.59,222.46,4.487]
[1733176869079,1.12054595,222.6,222.54,13.35268515]
[1733176869268,1.12054595,222.6,222.52,4.487]
[1733176869269,13.35268515,222.63,222.56,13.35268515]
[1733176869577,1.12036259,222.62,222.57,13.35268515]
[1733176870087,1.12020153,222.65,222.6,13.35268515]
[1733176870378,1.12020153,222.65,222.58,13.35268515]
[1733176870884,1.12020153,222.65,222.59,23.776884]
[1733176871088,1.12020153,222.65,222.59,28.263884]
[1733176871272,13.35268515,222.63,222.59,23.776884]
[1733176871471,14.47303984,222.62,222.59,23.776884]
[1733176871988,14.47303984,222.62,222.57,23.776884]
[1733176872279,13.35268515,222.6,222.56,28.263884]
[1733176872480,13.35268515,222.58,222.56,23.776884]
[1733176872687,13.35268515,222.61,222.54,23.776884]
[1733176872862,1.12049485,222.6,222.54,23.776884]
[1733176873759,1.12049485,222.6,222.54,37.12956915]
[1733176874082,1.12051589,222.64,222.59,28.263884]
[1733176874555,14.47320104,222.64,222.59,28.263884]
[1733176874975,1.12051589,222.64,222.59,28.263884]
[1733176875184,14.47320104,222.64,222.59,28.263884]
[1733176875392,13.35268515,222.63,222.59,28.263884]
[1733176875565,13.35268515,222.61,222.55,4.487]
[1733176875765,14.47318137,222.6,222.56,28.263884]
[1733176875965,1.12049622,222.6,222.56,28.263884]
[1733176876185,1.12046609,222.63,222.56,28.263884]
[1733176876383,13.35268515,222.61,222.56,28.263884]
[1733176876587,1.12047331,222.6,222.56,28.263884]
[1733176877088,14.47315846,222.6,222.56,28.263884]
[1733176877290,13.35268515,222.59,222.56,23.776884]
[1733176877587,13.35268515,222.57,222.45,570.0]
[1733176877797,13.35268515,222.54,222.47,13.35268515]
[1733176877970,14.47344868,222.53,222.46,13.35268515]
[1733176878163,13.35268515,222.49,222.45,500.0]
[1733176878361,13.35268515,222.47,222.45,500.0]
[1733176878586,1.1210277,222.54,222.45,513.35268515]
[1733176878960,13.35268515,222.51,222.45,500.0]
[1733176879161,1.12089976,222.5,222.45,500.0]
[1733176880913,13.35268515,222.46,222.45,500.0]
[1733176881195,13.35268515,222.47,222.45,500.0]
[1733176881889,14.4737361,222.46,222.45,500.0]
[1733176883581,27.49211606,222.46,222.45,500.0]
[1733176884283,30.29269336,222.46,222.45,500.0]
[1733176884777,51.66375847,222.46,222.45,417.35237916]
[1733176885586,30.29269336,222.46,222.45,417.35237916]
[1733176886778,51.66375847,222.46,222.45,410.12357916]
[1733176886986,51.66375847,222.46,222.45,403.04317916]
[1733176887186,30.29269336,222.46,222.45,397.93957916]
[1733176887373,30.29269336,222.46,222.45,393.56517916]
[1733176887579,30.29269336,222.46,222.45,389.52957916]
[1733176887976,25.29269336,222.46,222.45,389.52957916]
[1733176890687,22.49211606,222.46,222.45,389.52957916]
[1733176890890,27.49211606,222.46,222.45,389.52957916]
[1733176891191,27.01480098,222.46,222.45,389.52957916]
[1733176891375,32.01480098,222.46,222.45,376.65057916]
[1733176892190,27.01480098,222.46,222.45,376.65057916]
[1733176892594,5.64373587,222.46,222.45,376.65057916]
[1733176892806,1.12105095,222.46,222.45,376.65057916]
[1733176893103,57.51476511,222.49,222.45,376.65057916]
[1733176893104,1.12111371,222.48,222.45,376.65057916]
[1733176894069,20.0,222.46,222.45,376.65057916]
[1733176894500,1.12111371,222.48,222.45,376.65057916]
[1733176894995,1.12105485,222.5,222.45,376.65057916]
[1733176895370,1.12105485,222.5,222.46,23.776884]
[1733176895572,1.12105485,222.5,222.46,45.14794911]
[1733176895928,1.12105485,222.5,222.46,23.776884]
[1733176896770,1.12105485,222.5,222.46,45.14794911]
[1733176897084,20.0,222.5,222.46,45.14794911]
[1733176897803,20.0,222.5,222.47,21.37106511]
[1733176897990,1.12096825,222.51,222.48,45.14794911]
[1733176898175,1.12079959,222.55,222.5,45.14794911]
[1733176898495,1.12068663,222.57,222.55,23.776884]
[1733176898668,1.12055763,222.61,222.55,23.776884]
[1733176898874,22.49162274,222.61,222.55,23.776884]
[1733176899591,20.0,222.58,222.55,23.776884]
[1733176899777,1.1205508,222.57,222.54,23.776884]
[1733176899968,1.1205508,222.57,222.53,23.776884]
[1733176900174,22.49161591,222.57,222.51,23.776884]
[1733176900901,1.1205508,222.57,222.51,45.14794911]
[1733176901091,1.12063077,222.58,222.53,21.37106511]
[1733176901396,20.0,222.6,222.55,21.37106511]
[1733176901571,1.12038655,222.59,222.56,23.776884]
[1733176901775,21.37106511,222.6,222.54,23.776884]
[1733176902000,1.12050865,222.59,222.54,45.14794911]
[1733176903289,1.12050865,222.59,222.54,23.776884]
[1733176903492,21.37106511,222.58,222.53,23.776884]
[1733176903781,22.49172007,222.57,222.51,23.776884]
[1733176903985,21.37106511,222.53,222.48,27.2403]
[1733176904186,1.12083037,222.52,222.45,398.02164427]
[1733176904879,21.37106511,222.5,222.45,376.65057916]
[1733176905076,1.12101483,222.49,222.45,376.65057916]
[1733176905387,21.37106511,222.47,222.45,376.65057916]
[1733176905582,42.4921518,222.46,222.45,376.65057916]
[1733176906004,21.12108669,222.46,222.45,376.65057916]
[1733176909482,20.0,222.46,222.45,400.42746316]
[1733176912814,20.0,222.48,222.46,23.776884]
[1733176913009,21.12099968,222.48,222.46,23.776884]
[1733176913307,20.0,222.48,222.46,23.776884]
[1733176913611,1.12100222,222.47,222.45,376.65057916]
[1733176913814,21.12100222,222.47,222.45,376.65057916]
[1733176913986,14.46614816,222.52,222.45,376.65057916]
[1733176915325,20.0,222.49,222.46,23.776884]
[1733176915518,20.0,222.49,222.48,23.776884]
[1733176915718,1.12090421,222.53,222.48,41.6089495]
[1733176916028,1.12073191,222.56,222.51,23.776884]
[1733176916212,1.12073191,222.56,222.51,37.1219495]
[1733176916723,1.12073191,222.56,222.51,41.6089495]
[1733176916924,19.0,222.56,222.53,23.776884]
[1733176917909,13.3450655,222.54,222.45,376.65057916]
[1733176918105,13.3450655,222.52,222.45,376.65057916]
[1733176918303,1.12092425,222.54,222.48,13.3450655]
[1733176919220,1.12092425,222.54,222.49,23.776884]
[1733176919417,1.1207754,222.55,222.49,23.776884]
[1733176920600,20.0,222.53,222.49,23.776884]
[1733176920997,1.120782,222.52,222.49,23.776884]
[1733176921213,33.3450655,222.54,222.48,23.776884]
[1733176921398,1.12085104,222.53,222.48,23.776884]
[1733176921599,1.12085104,222.53,222.5,23.776884]
[1733176922105,1.12085104,222.53,222.48,37.1219495]
[1733176923019,13.3450655,222.49,222.45,376.65057916]
[1733176923231,1.12105306,222.48,222.45,376.65057916]
[1733176923913,1.12102416,222.49,222.45,376.65057916]
[1733176924108,20.0,222.5,222.45,389.99564466]
[1733176924302,21.12094807,222.49,222.45,389.99564466]
[1733176924537,21.12094807,222.49,222.46,23.776884]
[1733176924836,20.0,222.49,222.46,23.776884]
[1733176925003,20.0,222.48,222.46,23.776884]
[1733176925340,13.3450655,222.47,222.45,376.65057916]
[1733176925512,14.46616797,222.46,222.45,376.65057916]
[1733176925715,1.12110247,222.46,222.45,376.65057916]
[1733176926933,14.46616681,222.48,222.45,376.65057916]
[1733176927228,1.12110131,222.48,222.45,376.65057916]
[1733176927438,20.0,222.47,222.45,376.65057916]
[1733176927620,20.0,222.51,222.46,37.1219495]
[1733176927934,1.12092905,222.5,222.46,23.776884]
[1733176928121,14.46599455,222.5,222.46,28.263884]
[1733176928828,13.3450655,222.47,222.46,23.776884]
[1733176929135,13.3450655,222.47,222.45,376.65057916]
[1733176929336,14.46621537,222.46,222.45,376.65057916]
[1733176929534,25.70411537,222.46,222.45,376.65057916]
[1733176929724,33.72538014,222.46,222.45,376.65057916]
[1733176930123,43.24806506,222.46,222.45,356.67547916]
[1733176930326,43.24806506,222.46,222.45,332.69737916]
[1733176930841,43.24806506,222.46,222.45,309.13107916]
[1733176931818,43.24806506,222.46,222.45,292.33547916]
[1733176932020,46.02690979,222.46,222.45,284.82357916]
[1733176932936,46.02690979,222.46,222.45,276.66547916]
[1733176933141,46.02690979,222.46,222.45,270.20587916]
[1733176933485,46.02690979,222.46,222.45,266.51157916]
[1733176933486,41.02690979,222.46,222.45,266.51157916]
[1733176935864,22.48748014,222.46,222.45,266.51157916]
[1733176936420,62.00866506,222.46,222.45,259.73977916]
[1733176936648,66.96993804,222.46,222.45,237.64327916]
[1733176936841,66.96993804,222.46,222.45,228.10057916]
[1733176937043,52.00866506,222.46,222.45,223.54167916]
[1733176937521,33.72518898,222.47,222.45,223.54167916]
[1733176937928,1.12115871,222.47,222.45,223.54167916]
[1733176938130,1.12104502,222.49,222.45,223.54167916]
[1733176938522,1.12095361,222.5,222.46,23.776884]
[1733176939726,1.23687284,222.5,222.46,23.776884]
[1733176940028,20.0,222.46,222.45,223.54167916]
[1733176940235,42.4874945,222.46,222.45,223.54167916]
[1733176940744,21.12116423,222.46,222.45,223.54167916]
[1733176941628,20.0,222.46,222.45,223.54167916]
[1733176941822,1.12109668,222.47,222.45,247.31856316]
[1733176942828,1.12106219,222.48,222.45,247.31856316]
[1733176943234,20.0,222.46,222.45,247.31856316]
[1733176945541,21.4822495,222.5,222.45,247.31856316]
[1733176945542,1.12100959,222.49,222.46,23.776884]
[1733176945747,0.11591923,222.5,222.47,21.36633027]
[1733176946053,0.11591923,222.5,222.46,45.14321427]
[1733176946230,0.11591923,222.5,222.46,23.776884]
[1733176946825,0.11591923,222.5,222.49,45.14321427]
[1733176947052,0.11591923,222.5,222.49,21.36633027]
[1733176947255,0.11591923,222.5,222.49,75.49581427]
[1733176947551,1.12044362,222.62,222.5,23.776884]
[1733176947735,1.12044362,222.62,222.57,23.776884]
[1733176948121,1.12044362,222.62,222.57,13.776884]
[1733176948324,22.48677389,222.62,222.57,13.776884]
[1733176948527,1.12044362,222.62,222.56,21.36633027]
[1733176948823,1.12032772,222.62,222.57,21.36633027]
[1733176949050,1.12030065,222.66,222.6,21.36633027]
[1733176949328,1.1201603,222.67,222.62,21.36633027]
[1733176949630,1.11440043,222.69,222.62,21.36633027]
[1733176950027,1.11440043,222.69,222.63,21.36633027]
[1733176950233,1.1199853,222.69,222.64,45.14321427]
[1733176950459,21.36633027,222.72,222.64,45.14321427]
[1733176950751,1.11994984,222.71,222.64,21.36633027]
[1733176950949,1.11994984,222.71,222.65,23.776884]
[1733176951149,22.48622025,222.74,222.66,45.14321427]
[1733176951665,21.36633027,222.73,222.66,23.776884]
[1733176951860,21.36633027,222.71,222.66,23.776884]
[1733176952029,22.48631932,222.7,222.64,23.776884]
[1733176952238,22.48631932,222.7,222.63,23.776884]
[1733176952947,21.36633027,222.68,222.62,23.776884]
[1733176953155,1.12004671,222.67,222.62,45.14321427]
[1733176953555,1.12004614,222.68,222.62,45.14321427]
[1733176953756,22.48637641,222.68,222.62,23.776884]
[1733176954232,1.12004614,222.68,222.62,45.14321427]
[1733176955950,22.48637641,222.68,222.62,23.776884]
[1733176956160,21.36633027,222.66,222.6,23.776884]
[1733176956366,22.48651093,222.65,222.6,23.776884]
[1733176956565,22.48651093,222.65,222.58,21.36633027]
[1733176956872,22.48651093,222.65,222.57,21.36633027]
[1733176957054,22.48651093,222.65,222.58,21.36633027]
[1733176957747,21.36633027,222.63,222.56,26.287]
[1733176957949,21.36633027,222.61,222.56,26.287]
[1733176958154,1.12041563,222.6,222.56,26.287]
[1733176958371,21.36633027,222.63,222.56,47.65333027]
[1733176958564,20.0,222.64,222.6,21.36633027]
[1733176958755,20.0,222.64,222.61,21.36633027]
[1733176959074,20.0,222.64,222.6,21.36633027]
[1733176959365,20.0,222.64,222.61,23.776884]
[1733176960065,21.36633027,222.7,222.64,23.776884]
[1733176960274,1.11998375,222.69,222.63,21.36633027]
[1733176960572,21.36633027,222.66,222.59,21.36633027]
[1733176960858,1.12019945,222.65,222.59,21.36633027]
[1733176961063,21.36633027,222.64,222.57,23.776884]
[1733176961266,22.48663558,222.63,222.57,23.776884]
[1733176961453,1.12030531,222.63,222.57,23.776884]
[1733176962946,21.36633027,222.61,222.55,23.776884]
[1733176963171,1.12039993,222.6,222.55,23.776884]
[1733176963669,21.36633027,222.59,222.52,21.36633027]
[1733176963858,22.48687931,222.58,222.51,47.14503027]
[1733176964052,21.36633027,222.55,222.48,4.487]
[1733176964260,21.36633027,222.52,222.45,270.68670943]
[1733176964556,1.12085115,222.51,222.45,270.68670943]
[1733176964773,22.48718142,222.51,222.45,223.54167916]
[1733176965068,21.36633027,222.5,222.45,223.54167916]
[1733176965649,22.48727326,222.49,222.45,223.54167916]
[1733176965884,2.8005773,222.54,222.46,4.487]
[1733176966078,20.0,222.58,222.53,21.36633027]
[1733176966375,1.12057916,222.57,222.45,223.54167916]
[1733176966548,21.36633027,222.55,222.45,223.54167916]
[1733176966870,1.12080789,222.54,222.48,21.36633027]
[1733176967247,1.12080789,222.54,222.5,21.36633027]
[1733176967579,20.0,222.54,222.5,21.36633027]
[1733176968142,20.0,222.54,222.51,21.36633027]
[1733176968573,20.0,222.55,222.51,21.36633027]
[1733176968781,1.12068953,222.54,222.5,21.36633027]
[1733176969071,21.12068953,222.54,222.5,23.776884]
[1733176969673,21.36633027,222.53,222.46,21.36633027]
[1733176969881,21.36633027,222.51,222.46,23.776884]
[1733176970173,20.0,222.54,222.45,223.54167916]
[1733176970174,22.4872739,222.5,222.45,223.54167916]
[1733176971569,20.0,222.46,222.45,223.54167916]
[1733176971870,42.48743222,222.46,222.45,223.54167916]
[1733176973488,21.12110195,222.46,222.45,223.54167916]
[1733176974048,20.0,222.46,222.45,223.54167916]
[1733176975547,20.0,222.48,222.45,223.54167916]
[1733176975748,20.0,222.47,222.45,223.54167916]
[1733176977176,21.12102009,222.49,222.46,23.776884]
[1733176977346,21.36633027,222.52,222.46,23.776884]
[1733176977347,22.48735138,222.52,222.46,23.776884]
[1733176977549,22.48735138,222.52,222.46,28.263884]
[1733176978156,1.12102111,222.52,222.46,49.63021427]
[1733176978503,1.12085232,222.53,222.46,49.63021427]
[1733176979183,20.0,222.51,222.46,49.63021427]
[1733176979776,1.12075417,222.57,222.51,23.776884]
[1733176980081,21.36633027,222.56,222.51,23.776884]
[1733176980255,1.12072071,222.55,222.51,23.776884]
[1733176980458,21.36633027,222.54,222.51,23.776884]
[1733176980778,21.36633027,222.56,222.5,28.263884]
[1733176980959,21.12071635,222.55,222.5,49.63021427]
[1733176981164,20.0,222.55,222.52,23.776884]
[1733176981480,20.0,222.56,222.53,23.776884]
[1733176981680,21.12059547,222.56,222.53,23.776884]
[1733176982053,219.04055742,222.87,222.54,25.85333027]
[1733176982054,1.12060417,222.58,222.54,25.85333027]
[1733176982353,1.12048151,222.6,222.55,23.776884]
[1733176982560,1.12048151,222.6,222.55,45.14321427]
[1733176983295,1.12047413,222.61,222.55,45.14321427]
[1733176983656,1.12042016,222.62,222.58,4.492]
[1733176983978,1.12028632,222.61,222.6,23.776884]
[1733176984187,22.48668253,222.65,222.6,23.776884]
[1733176984779,22.48668253,222.65,222.59,23.776884]
[1733176984959,20.0,222.62,222.59,23.776884]
[1733176985160,21.12035956,222.61,222.58,28.268884]
[1733176985371,20.0,222.61,222.58,28.268884]
[1733176985752,20.0,222.62,222.58,49.63521427]
[1733176985978,20.0,222.63,222.58,49.63521427]
[1733176986561,20.0,222.63,222.6,23.776884]
[1733176986990,42.48656455,222.65,222.6,23.776884]
[1733176987191,21.36633027,222.61,222.53,4.492]
[1733176987366,21.36633027,222.57,222.5,21.36633027]
[1733176987575,1.1206264,222.56,222.5,21.36633027]
[1733176988465,22.48695062,222.57,222.5,21.36633027]
[1733176988676,1.12062035,222.57,222.51,21.36633027]
[1733176989164,20.0,222.58,222.53,21.36633027]
[1733176989363,1.12047865,222.57,222.54,23.776884]
[1733176989561,20.0,222.58,222.53,45.14321427]
[1733176990699,20.0,222.58,222.54,21.36633027]
[1733176990877,21.12047542,222.58,222.55,23.776884]
[1733176991278,20.0,222.58,222.55,23.776884]
[1733176991677,1.1205514,222.57,222.53,23.776884]
[1733176992398,21.36633027,222.54,222.48,4.492]
[1733176992782,22.48706797,222.53,222.46,21.36633027]
[1733176993191,1.1207377,222.53,222.47,21.36633027]
[1733176993398,20.0,222.51,222.47,21.36633027]
[1733176993676,20.0,222.52,222.5,21.36633027]
[1733176994107,20.0,222.52,222.51,23.776884]
[1733176994808,20.0,222.52,222.49,23.776884]
[1733176994982,20.0,222.52,222.51,23.776884]
[1733176995903,22.4870455,222.55,222.5,28.268884]
[1733176996109,1.12071523,222.55,222.5,28.268884]
[1733176996295,20.0,222.53,222.5,28.268884]
[1733176997392,1.12071523,222.55,222.5,28.268884]
[1733176997896,20.0,222.54,222.5,49.63521427]
[1733176998097,21.12071164,222.54,222.5,49.63521427]
[1733176998298,1.12071276,222.57,222.52,25.85833027]
[1733176998510,20.0,222.56,222.53,49.63521427]
[1733176998706,1.1205406,222.59,222.54,25.85833027]
[1733176998903,1.12044074,222.62,222.58,23.776884]
[1733176999395,1.12033252,222.63,222.58,45.14321427]
[1733176999710,39.787,222.69,222.59,4.492]
[1733176999711,1.12031933,222.64,222.59,4.492]
[1733176999904,1.12031933,222.64,222.61,4.492]
[1733177000305,1.12031933,222.64,222.62,23.776884]
[1733177000493,1.12023007,222.68,222.63,25.85833027]
[1733177000816,1.12002654,222.7,222.65,4.492]
[1733177001000,1.12002654,222.68,222.65,4.492]
[1733177001319,1.12002654,222.68,222.66,23.776884]
[1733177002021,1.12001282,222.69,222.66,23.776884]
[1733177002191,22.48634309,222.69,222.66,23.776884]
[1733177002388,1.12001282,222.69,222.66,23.776884]
[1733177002594,21.36633027,222.68,222.66,23.776884]
[1733177002805,1.12005435,222.67,222.66,23.776884]
[1733177003610,1.12005827,222.68,222.66,23.776884]
[1733177004402,1.11998414,222.68,222.64,23.776884]
[1733177004611,22.48630483,222.69,222.64,23.776884]
[1733177004908,22.48630483,222.69,222.63,23.776884]
[1733177005601,21.36633027,222.7,222.63,23.776884]
[1733177005918,22.48628552,222.7,222.63,23.776884]
[1733177006423,1.11995481,222.69,222.63,23.776884]
[1733177007819,13.32184391,222.66,222.59,23.776884]
[1733177008006,13.32184391,222.66,222.59,13.32184391]
[1733177008320,1.12011506,222.65,222.6,23.776884]
[1733177009206,13.32184391,222.62,222.55,13.32184391]
[1733177009793,13.32184391,222.63,222.55,13.32184391]
[1733177009995,1.12032288,222.62,222.56,13.32184391]
[1733177010513,1.12032288,222.62,222.54,4.492]
[1733177010514,13.32184391,222.64,222.57,13.32184391]
[1733177010816,1.12032325,222.68,222.6,23.776884]
[1733177010817,13.32184391,222.66,222.6,23.776884]
[1733177011019,20.0,222.64,222.6,37.09872791]
[1733177011198,20.0,222.65,222.62,23.776884]
[1733177011588,20.0,222.65,222.6,28.268884]
[1733177011814,21.1201476,222.65,222.6,28.268884]
[1733177012113,34.44199151,222.65,222.6,28.268884]
[1733177012820,13.32184391,222.62,222.59,23.776884]
[1733177013118,13.32184391,222.6,222.52,46.590412]
[1733177013295,14.44231971,222.59,222.52,42.13104391]
[1733177013730,1.1204758,222.59,222.53,17.81384391]
[1733177014519,13.32184391,222.58,222.55,4.492]
[1733177015124,1.1205242,222.57,222.55,4.492]
[1733177015307,13.32184391,222.59,222.55,4.492]
[1733177015506,1.12051604,222.58,222.55,4.492]
[1733177015811,14.44235995,222.58,222.52,4.492]
[1733177016327,1.12051604,222.58,222.52,17.81384391]
[1733177016495,20.0,222.59,222.55,17.81384391]
[1733177017221,20.0,222.59,222.56,23.776884]
[1733177017521,13.32184391,222.62,222.56,23.776884]
[1733177017522,14.4422046,222.63,222.59,23.776884]
[1733177017696,13.32184391,222.67,222.61,23.776884]
[1733177017895,1.1201642,222.66,222.61,23.776884]
[1733177018124,14.44200811,222.66,222.6,23.776884]
[1733177018324,14.44200811,222.66,222.61,4.492]
[1733177018534,14.44200811,222.66,222.62,23.776884]
[1733177018741,14.44200811,222.66,222.61,28.268884]
[1733177019026,13.32184391,222.65,222.61,28.268884]
[1733177019230,1.12022618,222.64,222.61,28.268884]
[1733177019720,1.12022618,222.64,222.59,23.776884]
[1733177020106,1.12019353,222.64,222.59,45.09927363]
[1733177020506,1.12019648,222.65,222.59,45.09927363]
[1733177020731,21.32238963,222.66,222.59,45.09927363]
[1733177020908,20.0,222.66,222.59,45.09927363]
[1733177021108,1.12013072,222.65,222.59,45.09927363]
[1733177021308,1.12014658,222.67,222.61,23.776884]
[1733177021509,1.12014658,222.67,222.61,45.09927363]
[1733177021709,1.12014658,222.67,222.63,23.776884]
[1733177022335,1.12008601,222.68,222.64,4.492]
[1733177022640,1.11999353,222.67,222.66,23.776884]
[1733177023011,1.12004777,222.68,222.66,23.776884]
[1733177023410,1.12004777,222.68,222.65,4.492]
[1733177023640,11.12000977,222.69,222.65,4.492]
[1733177024021,11.12000977,222.69,222.66,23.776884]
[1733177024740,11.11994906,222.69,222.65,28.268884]
[1733177025030,10.0,222.69,222.65,28.268884]
[1733177026616,10.0,222.69,222.65,23.776884]
[1733177026816,10.0,222.69,222.65,45.09927363]
[1733177027925,10.0,222.69,222.68,45.09927363]
[1733177028553,10.0,222.69,222.68,50.04884265]
[1733177028733,1.11965699,222.79,222.68,54.54084265]
[1733177028916,1.11965699,222.79,222.74,21.32238963]
[1733177029121,30.65345751,222.8,222.74,21.32238963]
[1733177029319,1.11945751,222.8,222.75,21.32238963]
[1733177029948,20.0,222.78,222.74,25.81438963]
[1733177030819,20.0,222.78,222.75,45.09927363]
[1733177031022,20.0,222.79,222.75,45.09927363]
[1733177031250,22.44179003,222.83,222.77,23.776884]
[1733177031556,20.0,222.76,222.67,4.46689762]
[1733177031752,5.0,222.82,222.68,50.03173696]
[1733177031753,21.11966584,222.75,222.68,50.03173696]
[1733177032053,42.44205547,222.75,222.69,4.93246333]
[1733177032228,42.44205547,222.75,222.7,23.776884]
[1733177032430,42.44205547,222.75,222.68,45.09927363]
[1733177032950,21.11966584,222.75,222.69,21.32238963]
[1733177033248,21.11966584,222.75,222.7,23.776884]
[1733177034031,21.11966584,222.75,222.69,23.776884]
[1733177035543,20.0,222.75,222.71,21.32238963]
[1733177035753,20.0,222.76,222.71,21.32238963]
[1733177036448,20.0,222.77,222.73,21.32238963]
[1733177036624,21.32238963,222.83,222.76,23.776884]
[1733177036825,1.11937388,222.82,222.76,23.776884]
[1733177037121,1.11937388,222.82,222.77,23.776884]
[1733177037731,1.11937388,222.82,222.78,28.268884]
[1733177038025,1.11937388,222.82,222.79,23.776884]
[1733177038451,20.0,222.8,222.79,23.776884]
[1733177040251,53.66298577,222.8,222.72,4.492]
[1733177040461,21.32238963,222.76,222.72,4.492]